bitfinex/quotes_ETHUSD_20260202
["timestamp","ask_amount","ask_price","bid_price","bid_amount"]
[1770074524730,1.95763675,2348.3,2347.4,13.21735333]
[1770074526182,0.893,2348.3,2347.4,13.21735333]
[1770074526374,1.95760281,2348.3,2347.4,13.21735333]
[1770074526841,13.11695289,2348.2,2347.0,0.001]
[1770074527045,12.20427174,2348.0,2347.2,0.06603936]
[1770074527273,2.22437644,2347.9,2347.2,0.06603936]
[1770074527585,1.06482664,2347.8,2347.0,0.001]
[1770074527789,1.06482664,2347.8,2347.3,0.001]
[1770074528967,13.11669243,2347.7,2347.0,0.001]
[1770074529166,2.31115191,2347.6,2346.7,10.32]
[1770074529367,2.31115191,2347.6,2346.8,0.06603936]
[1770074529580,1.06496272,2347.5,2346.8,0.06603936]
[1770074529973,13.26923446,2347.5,2346.8,0.06603936]
[1770074531911,13.26923446,2347.5,2345.5,0.12366664]
[1770074532065,13.26923446,2347.5,2345.4,12.9300774]
[1770074532066,1.13850374,2346.8,2345.4,12.9300774]
[1770074532380,14.00905033,2346.7,2345.4,12.9300774]
[1770074532615,0.91045038,2346.6,2345.4,12.9300774]
[1770074532779,12.20427174,2346.5,2345.4,12.9300774]
[1770074532984,1.3396333,2346.5,2345.5,14.22308514]
[1770074533202,0.2990613,2346.6,2345.5,14.22308514]
[1770074533590,1.06541657,2346.5,2345.5,14.22308514]
[1770074533794,1.06541657,2346.5,2345.5,1.29300774]
[1770074533993,13.26968831,2346.5,2345.2,12.9300774]
[1770074534714,1.06541657,2346.5,2345.4,12.9300774]
[1770074538903,1.36446583,2346.6,2345.4,13.99596005]
[1770074539190,0.2990613,2346.6,2345.6,12.9300774]
[1770074539492,1.36443345,2346.6,2345.6,12.9300774]
[1770074539703,1.36443345,2346.6,2345.3,12.9300774]
[1770074539704,12.20427174,2346.5,2345.3,12.9300774]
[1770074540012,1.06546198,2346.4,2345.3,12.9300774]
[1770074540220,1.06546198,2346.4,2345.3,13.99603542]
[1770074540603,1.06546198,2346.4,2345.3,12.9300774]
[1770074540911,1.06546198,2346.4,2345.5,12.44344305]
[1770074541116,1.06546198,2346.4,2345.4,0.02126664]
[1770074541117,1.06546198,2346.4,2345.6,13.68991402]
[1770074541312,1.06537117,2346.6,2345.7,12.46470969]
[1770074541813,13.76290582,2346.6,2345.6,1.24647097]
[1770074542012,13.76290582,2346.6,2345.5,12.44444305]
[1770074543200,1.06537117,2346.6,2345.7,12.44344305]
[1770074543682,1.95836101,2346.7,2345.7,12.44344305]
[1770074543886,0.893,2346.7,2345.7,12.44344305]
[1770074544087,1.36803226,2346.9,2345.9,12.46470969]
[1770074545496,1.36803226,2346.9,2345.9,12.44344305]
[1770074545907,14.06556691,2346.9,2345.9,12.44344305]
[1770074546690,1.36803226,2346.9,2345.9,12.44344305]
[1770074553320,14.06556691,2346.9,2345.9,12.44344305]
[1770074553525,1.83263739,2346.8,2345.9,12.44344305]
[1770074555221,13.76290582,2346.6,2345.5,12.44444305]
[1770074556233,13.61008807,2346.5,2345.5,12.44444305]
[1770074556530,12.69753465,2346.5,2345.5,12.44444305]
[1770074556737,1.37629058,2346.4,2345.5,12.44444305]
[1770074556941,1.37629058,2346.4,2345.5,0.001]
[1770074556942,14.07382523,2346.4,2345.5,0.001]
[1770074557127,1.37629058,2346.4,2345.7,12.44344305]
[1770074557313,2.44175339,2346.4,2345.7,12.44344305]
[1770074557639,2.44175339,2346.4,2345.5,12.44444305]
[1770074557640,0.24417534,2346.3,2345.5,12.44444305]
[1770074559150,1.13960374,2346.7,2345.7,13.5304874]
[1770074559442,0.91326241,2346.6,2345.7,13.5304874]
[1770074559609,0.0011,2346.7,2346.0,12.46470969]
[1770074560233,0.0011,2346.7,2346.1,0.894]
[1770074560619,0.0011,2346.7,2346.1,13.33744305]
[1770074560843,0.13765073,2346.9,2346.3,12.46470969]
[1770074561343,0.13765073,2346.9,2346.5,12.44344305]
[1770074561950,0.03830115,2346.9,2346.5,12.44344305]
[1770074562243,14.9047623,2347.5,2346.3,1.0655024]
[1770074562546,12.69753465,2347.3,2346.4,0.894]
[1770074562744,0.91375215,2347.2,2346.5,1.44242119]
[1770074562940,13.92603464,2347.3,2346.5,1.44242119]
[1770074563139,0.91374889,2347.2,2346.5,1.44242119]
[1770074563340,14.90473868,2347.5,2346.5,2.50782797]
[1770074563540,0.91352339,2347.4,2346.5,14.95127102]
[1770074563750,0.91352339,2347.3,2346.6,1.5845271]
[1770074563946,13.76249852,2347.5,2346.6,1.5845271]
[1770074564143,0.91359082,2347.4,2346.6,1.5845271]
[1770074564348,0.91359082,2347.3,2346.6,1.5845271]
[1770074564646,13.76249852,2347.5,2346.6,1.5845271]
[1770074564829,0.41330543,2347.4,2346.7,1.54703913]
[1770074565149,15.83074185,2347.5,2346.7,1.54703913]
[1770074565344,15.83074185,2347.5,2346.5,1.44242119]
[1770074565540,12.69753465,2347.4,2346.6,0.894]
[1770074567448,13.76254656,2347.4,2346.6,0.894]
[1770074569130,0.0011,2347.2,2346.6,0.894]
[1770074569844,0.0011,2347.2,2346.4,12.44344305]
[1770074570074,0.0011,2347.2,2346.7,0.894]
[1770074570862,12.92701621,2347.2,2346.7,0.894]
[1770074571164,14.32621902,2347.2,2346.7,0.894]
[1770074571844,12.92591621,2347.0,2346.7,0.894]
[1770074572164,12.92591621,2347.0,2346.1,12.76775041]
[1770074572354,12.92591621,2347.0,2346.1,0.001]
[1770074572556,12.92591621,2347.0,2346.2,0.894]
[1770074572865,14.32502225,2346.9,2346.2,0.894]
[1770074573667,14.32502225,2346.9,2346.1,0.001]
[1770074573844,1.06528038,2346.8,2346.2,0.894]
[1770074574038,13.99119659,2346.8,2346.2,0.894]
[1770074574766,12.92591621,2346.8,2346.1,0.001]
[1770074575069,12.92591621,2346.8,2346.2,0.894]
[1770074575272,14.8910216,2346.8,2346.2,0.894]
[1770074577962,1.39910604,2346.9,2346.2,0.894]
[1770074578472,0.91320965,2346.8,2346.2,0.894]
[1770074578664,1.39910604,2346.9,2346.2,0.894]
[1770074578864,0.91323209,2346.8,2346.2,0.894]
[1770074579064,1.39910604,2346.9,2346.2,0.894]
[1770074579270,0.91331409,2346.8,2346.2,0.894]
[1770074579450,1.39910604,2346.9,2346.2,2.26017504]
[1770074579650,0.91331229,2346.8,2346.2,2.26017504]
[1770074579851,1.39910604,2346.9,2346.2,2.26017504]
[1770074580557,1.39910604,2346.9,2346.2,13.66075041]
[1770074580765,1.14223011,2347.1,2346.2,14.72630061]
[1770074580964,0.91349648,2347.0,2346.2,14.72630061]
[1770074581168,0.91349648,2346.9,2346.2,14.72630061]
[1770074581352,16.5335816,2347.2,2346.2,13.66075041]
[1770074581553,13.83955406,2347.1,2346.2,13.66075041]
[1770074581769,15.584276,2347.0,2346.2,15.13348704]
[1770074581976,0.91363785,2346.9,2346.2,15.13348704]
[1770074582150,14.67063815,2347.0,2346.2,15.13348704]
[1770074582475,0.91355333,2346.9,2346.2,15.13348704]
[1770074582658,14.67063815,2347.0,2346.2,15.13348704]
[1770074582861,0.91357346,2346.9,2346.2,15.13348704]
[1770074583060,15.73582987,2347.0,2346.4,0.001]
[1770074583262,2.60132994,2346.9,2346.4,0.001]
[1770074583466,1.687806,2346.9,2346.4,0.001]
[1770074584175,1.74472194,2347.0,2346.4,0.001]
[1770074584361,0.91360898,2346.9,2346.4,0.001]
[1770074584562,1.74472194,2347.0,2346.4,0.001]
[1770074584762,0.91349364,2346.9,2346.4,0.001]
[1770074584978,1.74472194,2347.0,2346.4,0.001]
[1770074585185,0.91348947,2346.9,2346.4,0.001]
[1770074585483,1.74472194,2347.0,2346.4,0.001]
[1770074585667,0.91351959,2346.9,2346.4,0.001]
[1770074585984,1.74472194,2347.0,2346.4,0.001]
[1770074586283,0.91364055,2346.9,2346.4,0.001]
[1770074586485,12.92591621,2346.8,2346.4,0.001]
[1770074586781,1.57358338,2346.8,2346.4,0.001]
[1770074586952,14.06924632,2347.2,2346.4,12.76775041]
[1770074587150,0.91359105,2347.1,2346.4,12.76775041]
[1770074587352,0.91359105,2347.0,2346.4,12.76775041]
[1770074587567,0.0011,2347.2,2346.4,12.76775041]
[1770074588179,0.91419856,2347.1,2346.4,12.76775041]
[1770074588379,0.0011,2347.2,2346.6,12.76675041]
[1770074588580,0.91421162,2347.1,2346.6,12.76675041]
[1770074588764,0.0011,2347.2,2346.6,12.76675041]
[1770074589059,0.91412769,2347.1,2346.6,12.76675041]
[1770074589259,0.0011,2347.2,2346.6,12.76675041]
[1770074589466,0.91446771,2347.1,2346.6,14.28840191]
[1770074589661,0.0011,2347.2,2346.6,14.28840191]
[1770074589869,0.91446443,2347.1,2346.6,14.28840191]
[1770074590175,0.0011,2347.2,2346.6,14.28840191]
[1770074590375,0.91449325,2347.1,2346.6,14.28840191]
[1770074590677,0.0011,2347.2,2346.6,14.28840191]
[1770074590877,0.91453962,2347.1,2346.6,14.28840191]
[1770074591061,0.0011,2347.2,2346.6,14.28840191]
[1770074591260,0.91451265,2347.1,2346.6,14.28840191]
[1770074591462,0.0011,2347.2,2346.6,14.28840191]
[1770074591667,0.91459449,2347.1,2346.6,14.28840191]
[1770074591969,0.0011,2347.2,2346.6,14.28840191]
[1770074592168,0.91460371,2347.1,2346.6,14.28840191]
[1770074592368,0.0011,2347.2,2346.6,14.28840191]
[1770074592558,0.91464428,2347.1,2346.6,14.28840191]
[1770074592759,0.0011,2347.2,2346.6,14.28840191]
[1770074592961,0.91464374,2347.1,2346.6,14.28840191]
[1770074593259,0.0011,2347.2,2346.6,14.28840191]
[1770074593460,0.91466492,2347.1,2346.6,14.28840191]
[1770074593663,0.0011,2347.2,2346.6,14.28840191]
[1770074593861,0.91469803,2347.1,2346.6,14.28840191]
[1770074594088,0.0011,2347.2,2346.6,14.28840191]
[1770074594290,0.91482007,2347.1,2346.6,14.28840191]
[1770074594491,0.0011,2347.2,2346.7,0.894]
[1770074594671,0.91485863,2347.1,2346.7,0.894]
[1770074594871,0.0011,2347.2,2346.7,0.894]
[1770074595057,0.91497656,2347.1,2346.7,0.894]
[1770074595261,0.0011,2347.2,2346.7,0.894]
[1770074595473,0.91505431,2347.1,2346.7,0.894]
[1770074595791,0.0011,2347.2,2346.7,0.894]
[1770074595970,0.91505382,2347.1,2346.7,0.894]
[1770074596173,0.0011,2347.2,2346.7,0.894]
[1770074596384,0.91505474,2347.1,2346.7,0.894]
[1770074596581,0.0011,2347.2,2346.7,0.894]
[1770074596785,0.91506515,2347.1,2346.7,0.894]
[1770074596985,0.0011,2347.2,2346.7,0.894]
[1770074597186,0.91505307,2347.1,2346.7,0.894]
[1770074597491,0.0011,2347.2,2346.7,0.894]
[1770074597693,0.91508432,2347.1,2346.7,0.894]
[1770074597877,0.0011,2347.2,2346.7,0.894]
[1770074598078,0.91508326,2347.1,2346.7,0.894]
[1770074598289,0.0011,2347.2,2346.7,0.894]
[1770074598593,0.91509272,2347.1,2346.7,0.894]
[1770074598802,0.0011,2347.2,2346.7,13.66075041]
[1770074598964,0.91509576,2347.1,2346.7,13.66075041]
[1770074599167,0.0011,2347.2,2346.8,12.76675041]
[1770074599364,0.91510679,2347.1,2346.8,12.76675041]
[1770074599595,0.0011,2347.2,2346.8,12.76675041]
[1770074599895,0.91510788,2347.1,2346.8,12.76675041]
[1770074600100,0.0011,2347.2,2346.8,12.76675041]
[1770074600407,0.91510476,2347.1,2346.8,12.76675041]
[1770074600607,0.0011,2347.2,2346.7,3.28296741]
[1770074600807,0.91510536,2347.1,2346.7,3.28296741]
[1770074601004,0.0011,2347.2,2346.7,3.28296741]
[1770074601207,0.91511451,2347.1,2346.7,0.894]
[1770074601390,0.0011,2347.2,2346.7,0.894]
[1770074601590,12.5332949,2346.9,2346.4,0.001]
[1770074601907,13.44828209,2346.8,2346.5,0.894]
[1770074602074,12.5332949,2346.8,2346.5,0.894]
[1770074603204,13.59850025,2347.0,2346.5,0.894]
[1770074603405,14.92264874,2346.9,2346.5,0.894]
[1770074603609,0.9152808,2346.8,2346.5,0.894]
[1770074606104,13.4485757,2346.7,2346.4,0.68068181]
[1770074606305,12.5332949,2346.7,2346.3,0.894]
[1770074607103,14.00736794,2346.9,2346.3,0.894]
[1770074607306,2.53677252,2346.8,2346.3,0.894]
[1770074607497,1.62148222,2346.8,2346.3,0.894]
[1770074609207,12.5332949,2346.9,2346.3,0.894]
[1770074609404,0.91532279,2346.8,2346.3,0.894]
[1770074609691,12.5332949,2346.9,2346.3,0.894]
[1770074609692,12.5332949,2346.9,2346.5,0.001]
[1770074609885,0.91531163,2346.8,2346.5,0.001]
[1770074610086,12.5332949,2346.9,2346.5,0.001]
[1770074610315,0.91531201,2346.8,2346.5,0.001]
[1770074610518,0.0011,2347.2,2346.8,11.84209188]
[1770074610696,0.0011,2347.2,2346.9,0.894]
[1770074611301,0.0011,2347.2,2346.9,12.73609188]
[1770074611910,0.0011,2347.2,2346.9,14.77378817]
[1770074613520,5.77713038,2347.9,2347.2,11.84209188]
[1770074613521,1.51800499,2347.9,2347.2,11.84209188]
[1770074613827,14.05129989,2347.9,2347.0,11.84209188]
[1770074614021,12.5332949,2347.9,2347.0,11.84209188]
[1770074614201,12.5332949,2347.9,2347.1,3.15258847]
[1770074615824,13.59808062,2347.9,2346.9,2.03769629]
[1770074616039,13.59808062,2347.9,2347.0,0.893]
[1770074618145,13.59808062,2347.9,2347.1,0.893]
[1770074618146,12.5332949,2347.8,2347.1,0.893]
[1770074620350,8.70565672,2347.9,2347.1,0.893]
[1770074620351,12.5332949,2347.6,2347.1,0.893]
[1770074622353,12.5332949,2347.6,2346.7,12.90741564]
[1770074622558,14.3190434,2347.6,2346.9,0.893]
[1770074622965,14.3190434,2347.6,2347.3,0.001]
[1770074623172,15.38396277,2347.6,2347.3,0.001]
[1770074623530,14.3190434,2347.6,2347.3,0.001]
[1770074623737,1.53850489,2347.5,2347.3,0.001]
[1770074624880,0.0011,2347.7,2347.3,0.001]
[1770074625758,1.06598114,2347.7,2347.3,0.001]
[1770074626662,13.59927604,2347.7,2347.3,0.001]
[1770074630392,0.0011,2347.7,2347.3,0.001]
[1770074630772,0.0011,2347.7,2347.3,12.48000956]
[1770074630956,0.0011,2347.7,2347.4,13.72701052]
[1770074631283,0.0011,2347.9,2347.4,13.72701052]
[1770074634589,0.0011,2347.9,2347.4,2.14100096]
[1770074635110,0.0011,2347.9,2347.3,0.001]
[1770074635111,12.36272298,2347.9,2347.3,0.001]
[1770074635792,1.06482664,2347.8,2347.3,0.001]
[1770074635974,0.0011,2347.9,2347.3,12.48000956]
[1770074636382,1.34395822,2347.9,2347.3,12.48000956]
[1770074637171,1.34395822,2347.9,2347.5,0.001]
[1770074637500,0.0011,2347.7,2347.5,0.001]
[1770074643804,0.0011,2347.9,2347.5,13.37300956]
[1770074643990,0.0011,2348.1,2347.6,14.57997432]
[1770074646606,12.36272298,2348.1,2347.5,0.894]
[1770074648716,12.36162298,2347.9,2347.3,0.001]
[1770074649609,13.27658622,2347.8,2347.3,0.001]
[1770074649809,12.36162298,2347.8,2347.3,0.001]
[1770074650013,12.36162298,2347.8,2347.0,0.001]
[1770074650311,14.51269603,2347.7,2347.0,0.001]
[1770074650513,0.91491075,2347.6,2347.5,0.001]
[1770074651799,0.91474762,2347.6,2347.5,0.001]
[1770074654413,1.97966498,2347.6,2347.5,0.001]
[1770074654714,0.91474762,2347.6,2347.5,0.001]
[1770074654915,2.77481243,2347.6,2347.5,0.001]
[1770074658812,1.86006481,2347.6,2347.5,0.001]
[1770074659016,0.0011,2347.9,2347.5,0.001]
[1770074659224,0.91454745,2347.8,2347.5,0.001]
[1770074659390,0.91454745,2347.7,2347.5,0.001]
[1770074659591,1.06588802,2347.9,2347.5,0.001]
[1770074659893,0.91458322,2347.8,2347.5,0.001]
[1770074660195,0.91458322,2347.7,2347.5,0.001]
[1770074667319,1.06588672,2347.9,2347.5,12.66833749]
[1770074667320,0.0011,2347.9,2347.5,12.66833749]
[1770074671018,0.0011,2347.9,2347.6,12.66733749]
[1770074672296,0.0011,2347.9,2347.6,13.73224651]
[1770074672893,0.30654822,2348.3,2348.0,12.66733749]
[1770074673128,0.30654822,2348.3,2348.1,0.893]
[1770074678315,13.13917535,2348.3,2347.7,0.893]
[1770074678642,13.13917535,2348.3,2347.5,12.66833749]
[1770074678643,12.83262713,2348.2,2347.5,0.894]
[1770074678859,12.83262713,2348.0,2347.3,0.001]
[1770074679142,12.83262713,2347.8,2347.3,0.894]
[1770074680942,13.89745659,2347.8,2347.3,0.894]
[1770074681131,15.71309863,2347.8,2347.3,0.894]
[1770074681518,15.71309863,2347.8,2347.0,12.66833749]
[1770074681519,12.83262713,2347.6,2347.0,0.001]
[1770074682643,1.81564204,2347.8,2347.1,7.63663799]
[1770074682942,13.89727591,2348.2,2347.4,12.66733749]
[1770074683110,0.91355928,2348.1,2347.4,12.66733749]
[1770074683310,13.89727591,2348.2,2347.4,12.66733749]
[1770074683539,0.91360988,2348.1,2347.4,13.56033749]
[1770074683721,13.89727591,2348.2,2347.4,13.56033749]
[1770074683924,2.72258614,2348.1,2347.4,13.56033749]
[1770074684125,1.80895962,2348.1,2347.4,13.56033749]
[1770074685240,13.89727591,2348.2,2347.4,13.56033749]
[1770074685544,0.91384069,2348.1,2347.4,13.56033749]
[1770074685745,13.89727591,2348.2,2347.4,13.56033749]
[1770074686045,0.91383916,2348.1,2347.4,13.56033749]
[1770074686247,13.89727591,2348.2,2347.4,13.56033749]
[1770074686417,0.91379201,2348.1,2347.4,14.91637124]
[1770074686618,12.83262713,2348.1,2347.4,2.24903375]
[1770074686817,12.83262713,2348.1,2347.4,13.56033749]
[1770074687030,12.83262713,2348.1,2347.4,13.56133749]
[1770074687219,12.83372713,2348.1,2347.4,13.56133749]
[1770074688035,0.0011,2348.1,2347.4,13.56133749]
[1770074688349,0.0011,2348.1,2347.5,14.02347124]
[1770074689136,0.0011,2348.1,2347.6,12.66733749]
[1770074690018,0.0011,2348.1,2347.8,12.29931057]
[1770074690449,0.30654822,2348.3,2347.6,1.06491022]
[1770074690450,0.30654822,2348.3,2348.0,12.29931057]
[1770074692652,1.06440997,2348.8,2348.1,12.29931057]
[1770074692954,0.91396821,2348.7,2348.1,14.38220543]
[1770074693127,1.06440997,2348.8,2348.1,14.38220543]
[1770074693452,0.91391793,2348.7,2348.1,14.38220543]
[1770074693647,1.06440997,2348.8,2348.1,14.38220543]
[1770074693852,0.91375493,2348.7,2348.1,14.38220543]
[1770074694049,1.06440997,2348.8,2348.1,14.38220543]
[1770074694256,0.91375426,2348.7,2348.1,14.38220543]
[1770074694453,13.90667075,2348.9,2348.2,1.43822054]
[1770074694748,0.91376792,2348.8,2348.2,1.43822054]
[1770074694950,13.90665055,2348.9,2348.2,1.43822054]
[1770074695139,12.84122173,2348.7,2347.7,12.29931057]
[1770074695656,12.84122173,2348.7,2347.8,0.893]
[1770074696249,13.90567923,2348.7,2347.8,0.893]
[1770074697055,13.90567923,2348.7,2347.9,0.893]
[1770074698530,12.84122173,2348.7,2347.9,0.893]
[1770074698733,12.84122173,2348.7,2348.0,1.31923106]
[1770074699453,0.0011,2348.9,2348.1,12.29931057]
[1770074699624,0.0011,2348.9,2348.2,19.93102363]
[1770074700039,0.0011,2348.5,2348.2,19.93102363]
[1770074700231,0.0011,2348.5,2348.3,1.99310236]
[1770074700443,0.0011,2348.5,2348.0,1.32023106]
[1770074700651,0.0011,2348.5,2348.0,0.001]
[1770074702568,0.0011,2348.5,2348.0,0.894]
[1770074702752,12.84232173,2348.5,2348.0,0.001]
[1770074703137,12.84232173,2348.5,2347.3,1.06503441]
[1770074703340,12.84232173,2348.5,2347.5,0.893]
[1770074703557,12.84122173,2348.3,2347.4,13.19331057]
[1770074705059,13.90586699,2348.2,2347.4,13.19331057]
[1770074705235,13.90586699,2348.2,2347.4,0.894]
[1770074705556,12.84122173,2348.2,2347.4,0.894]
[1770074705964,12.84122173,2348.2,2347.4,13.19331057]
[1770074706165,16.05965008,2348.4,2347.5,12.29931057]
[1770074706365,3.21842835,2348.4,2347.5,12.29931057]
[1770074706546,12.84122173,2348.3,2347.5,12.29931057]
[1770074708860,13.90686703,2348.5,2347.6,19.93102363]
[1770074709070,0.91341836,2348.4,2347.6,19.93102363]
[1770074709364,13.90686703,2348.5,2347.6,19.93102363]
[1770074709662,0.0011,2348.5,2347.9,12.29931057]
[1770074709863,0.0011,2348.5,2348.0,21.92412599]
[1770074710160,0.0011,2348.5,2348.0,14.29241293]
[1770074712665,0.0011,2348.5,2348.0,1.99310236]
[1770074713168,0.0011,2348.5,2347.9,13.19231057]
[1770074714172,0.0011,2348.2,2347.9,13.19231057]
[1770074715458,0.0011,2348.2,2347.9,0.893]
[1770074715863,0.0011,2348.2,2347.9,13.19231057]
[1770074717566,12.84232173,2348.2,2347.6,0.001]
[1770074717752,1.28423217,2348.1,2347.6,0.894]
[1770074717955,12.84232173,2348.2,2347.6,0.894]
[1770074719171,12.84232173,2348.2,2347.6,0.001]
[1770074719352,13.90697507,2348.2,2347.4,0.001]
[1770074719553,12.84122173,2348.0,2347.4,0.001]
[1770074720887,13.90595981,2348.0,2347.4,0.001]
[1770074721084,13.29158248,2347.9,2347.4,0.001]
[1770074725199,14.35637227,2347.9,2347.4,0.001]
[1770074725964,11.9009865,2347.5,2347.0,0.001]
[1770074726776,12.96595925,2347.5,2347.0,0.001]
[1770074726996,2.05976723,2347.4,2347.0,0.001]
[1770074727867,13.96075373,2347.4,2347.0,0.001]
[1770074728284,11.9009865,2347.3,2346.5,1.60667952]
[1770074728691,2.05976723,2347.4,2346.5,14.61731405]
[1770074728867,2.05976723,2347.4,2346.5,13.55190714]
[1770074729067,2.05976723,2347.4,2346.6,13.40696115]
[1770074729287,13.96075373,2347.4,2347.2,0.001]
[1770074729484,13.96075373,2347.4,2346.6,13.40696115]
[1770074729485,2.05976723,2347.4,2346.6,11.94522762]
[1770074729795,2.05976723,2347.4,2347.0,0.001]
[1770074730386,15.02576237,2347.4,2347.0,0.001]
[1770074730570,1.50257624,2347.3,2347.0,0.001]
[1770074730902,13.40356274,2347.3,2347.0,0.001]
[1770074731990,1.50257624,2347.3,2347.0,0.001]
[1770074736983,14.4686198,2347.3,2346.5,0.71367952]
[1770074737179,11.9009865,2347.1,2346.5,0.71367952]
[1770074737507,12.9661761,2347.0,2346.5,0.71367952]
[1770074737703,12.9661761,2347.0,2345.8,11.94522762]
[1770074737704,11.9009865,2346.9,2345.8,11.94522762]
[1770074737905,11.9009865,2346.9,2345.8,13.01095136]
[1770074738207,11.9009865,2346.9,2345.8,11.94522762]
[1770074738408,13.96077542,2346.8,2345.8,14.5251183]
[1770074738704,11.9009865,2346.7,2345.6,11.94522762]
[1770074738904,9.69150198,2346.8,2345.3,1.06593396]
[1770074738905,11.9009865,2346.5,2345.3,1.06593396]
[1770074739110,2.95278892,2346.8,2345.2,12.83822762]
[1770074739111,11.9009865,2346.3,2345.2,12.83822762]
[1770074739311,11.9009865,2346.3,2345.2,13.90423032]
[1770074739491,12.9665393,2346.2,2345.2,13.90423032]
[1770074739808,1.29665393,2346.1,2345.3,1.39042303]
[1770074740203,1.29665393,2346.1,2345.2,11.94522762]
[1770074740204,13.19764043,2346.1,2345.2,11.94522762]
[1770074740405,11.9009865,2345.9,2344.9,13.01136333]
[1770074740578,11.9009865,2345.9,2345.1,13.0112416]
[1770074740780,1.29665393,2346.1,2345.1,13.0112416]
[1770074740781,13.19764043,2346.1,2345.1,13.0112416]
[1770074741207,13.19764043,2346.1,2345.1,13.01125228]
[1770074741383,13.19764043,2346.1,2345.2,13.24635285]
[1770074741905,1.29665393,2346.1,2345.2,14.31233042]
[1770074742214,1.95855512,2346.2,2345.2,14.31233042]
[1770074742410,1.95855512,2346.2,2345.3,11.94622762]
[1770074742602,0.77564982,2346.1,2345.3,11.94622762]
[1770074743719,12.96663014,2346.0,2345.3,0.001]
[1770074744219,11.9009865,2346.0,2345.3,0.001]
[1770074744383,1.37422569,2345.9,2345.3,0.001]
[1770074744584,13.27521219,2345.9,2345.3,0.001]
[1770074745219,13.27521219,2345.9,2345.0,11.94622762]
[1770074745425,13.27521219,2345.9,2345.0,0.001]
[1770074745715,1.0657345,2345.8,2345.0,0.001]
[1770074745915,1.43409467,2345.7,2345.0,0.001]
[1770074746216,13.33508117,2345.7,2345.0,0.001]
[1770074747119,1.43409467,2345.7,2345.0,11.94622762]
[1770074749608,1.43409467,2345.7,2345.0,13.01231304]
[1770074749809,0.77564982,2346.1,2345.0,13.01231304]
[1770074750011,0.77564982,2346.1,2345.2,11.83425762]
[1770074750727,12.75536376,2346.1,2345.2,11.83425762]
[1770074751425,0.77564982,2346.1,2345.2,11.83425762]
[1770074751803,0.77564982,2346.1,2345.2,1.06597123]
[1770074751804,12.75536376,2346.1,2345.2,1.06597123]
[1770074752020,12.75536376,2346.1,2345.3,0.53300174]
[1770074753717,12.75536376,2346.1,2345.3,12.43079816]
[1770074753918,0.77564982,2346.1,2345.3,12.43079816]
[1770074754494,12.75536376,2346.1,2345.3,12.43079816]
[1770074754895,13.82096466,2346.1,2345.3,0.53300174]
[1770074755098,1.47139647,2346.0,2345.1,13.85782148]
[1770074755319,13.45111041,2346.0,2345.1,12.96382148]
[1770074755525,13.45111041,2346.0,2345.1,11.89779642]
[1770074756097,13.45111041,2346.0,2345.5,0.001]
[1770074756299,14.51676152,2346.0,2345.3,0.001]
[1770074756499,11.97971394,2345.8,2345.3,0.001]
[1770074758226,13.04548077,2345.8,2345.3,0.001]
[1770074758709,11.97971394,2345.8,2345.3,0.001]
[1770074760522,13.04544948,2345.8,2345.3,0.001]
[1770074760721,1.45746856,2345.7,2345.3,0.001]
[1770074763740,1.52923611,2345.9,2345.3,11.89879642]
[1770074763946,1.84126047,2346.1,2345.3,11.89879642]
[1770074764943,13.82097441,2346.1,2345.3,11.89879642]
[1770074765301,13.82097441,2346.1,2345.3,0.001]
[1770074765503,2.66283028,2346.0,2345.3,0.001]
[1770074766126,14.64254422,2346.0,2345.3,0.001]
[1770074766327,14.64254422,2346.0,2343.8,3.03665265]
[1770074766328,11.97971394,2345.8,2343.8,3.03665265]
[1770074766538,11.97971394,2345.8,2343.4,0.2227995]
[1770074766539,1.13581348,2344.2,2343.4,0.2227995]
[1770074766720,1.13581348,2343.9,2343.2,0.006376]
[1770074767043,0.91232316,2343.8,2343.2,11.89779642]
[1770074767339,0.02126664,2343.9,2343.5,11.89779642]
[1770074767538,1.5254738,2344.5,2343.6,13.95946866]
[1770074767706,2.00082565,2344.5,2343.6,13.95946866]
[1770074768503,2.59184472,2344.4,2343.6,13.95946866]
[1770074768708,1.06637092,2344.4,2343.6,13.95946866]
[1770074769008,1.06637092,2344.4,2343.3,11.89779642]
[1770074769312,13.04608486,2344.4,2343.3,11.89779642]
[1770074770113,1.06637092,2344.4,2343.5,11.89879642]
[1770074770726,13.04608486,2344.4,2343.5,0.001]
[1770074772042,1.06637092,2344.4,2343.5,11.89879642]
[1770074772236,1.20048271,2344.3,2343.5,13.08877606]
[1770074772436,1.53460926,2344.2,2343.5,13.08877606]
[1770074774160,1.53460926,2344.2,2343.5,1.19097964]
[1770074775927,13.5143232,2344.2,2343.5,0.001]
[1770074777026,4.99811343,2344.3,2343.5,11.89879642]
[1770074777027,1.79879885,2344.3,2343.5,11.89879642]
[1770074777256,1.06641934,2344.3,2343.5,11.89879642]
[1770074777847,4.73358965,2344.4,2343.5,11.89879642]
[1770074777848,1.53449834,2344.4,2343.5,11.89879642]
[1770074779232,0.90550472,2344.3,2343.5,11.89879642]
[1770074779443,0.90550472,2344.2,2343.5,11.89879642]
[1770074779645,1.53449834,2344.4,2343.5,11.89879642]
[1770074779938,0.4681032,2344.4,2343.7,11.89779642]
[1770074781634,1.06626858,2344.7,2343.7,12.83843797]
[1770074783539,1.06618901,2344.8,2343.7,13.90511328]
[1770074784457,1.06618901,2344.8,2343.9,0.001]
[1770074784656,1.06618901,2344.8,2343.9,12.83943797]
[1770074784858,1.06618901,2344.8,2344.0,1.2839438]
[1770074785057,1.06607756,2345.1,2344.0,14.12238177]
[1770074785647,1.06607756,2345.1,2344.0,15.18890508]
[1770074786048,1.37106374,2345.2,2344.0,15.18890508]
[1770074786247,1.37106374,2345.2,2344.2,12.83843797]
[1770074787844,0.30502328,2345.2,2344.4,12.83843797]
[1770074788873,0.30502328,2345.2,2344.4,13.73243797]
[1770074790171,0.30502328,2345.2,2344.5,1.06632544]
[1770074790340,0.30502328,2345.2,2344.6,12.83843797]
[1770074790541,0.30502328,2345.2,2344.7,13.95725471]
[1770074794668,0.08488907,2345.2,2344.7,13.95725471]
[1770074799266,0.0011,2345.0,2344.7,13.95725471]
[1770074801207,0.0011,2345.0,2344.7,1.11881674]
[1770074801388,0.0011,2345.0,2344.7,13.95725471]
[1770074801598,0.0011,2345.0,2344.8,1.18987964]
[1770074803379,0.0011,2345.0,2344.3,13.90483389]